[Event "*** SCC Grand Prix: Titled Tuesday Blitz"]
[Site "Chess.com"]
[Date "2020.07.07"]
[Round "1"]
[White "FrenchMonster2002"]
[Black "Antipov_Mikhail_Al"]
[Result "1-0"]
[WhiteElo "2447"]
[BlackElo "2820"]
[TimeControl "180+1"]
[EndTime "10:07:24 PDT"]
[Termination "FrenchMonster2002 won by resignation"]

1. e4 {[%clk 0:02:56.3]} 1... e5 {[%clk 0:02:58.7]} 2. Nf3 {[%clk 0:02:56.1]}
2... Nc6 {[%clk 0:02:58.9]} 3. d4 {[%clk 0:02:56.7]} 3... exd4 {[%clk
0:02:58.9]} 4. Nxd4 {[%clk 0:02:57.6]} 4... Nf6 {[%clk 0:02:59.1]} 5. Nxc6
{[%clk 0:02:57.7]} 5... bxc6 {[%clk 0:02:58.7]} 6. e5 {[%clk 0:02:58.3]} 6...
Qe7 {[%clk 0:02:56.9]} 7. Qe2 {[%clk 0:02:58.9]} 7... Nd5 {[%clk 0:02:55.7]} 8.
h4 {[%clk 0:02:59.8]} 8... Qe6 {[%clk 0:02:48.9]} 9. g3 {[%clk 0:02:59.4]} 9...
f6 {[%clk 0:02:41.5]} 10. c4 {[%clk 0:02:52.1]} 10... Bb4+ {[%clk 0:02:24.8]}
11. Nd2 {[%clk 0:02:29.7]} 11... Nb6 {[%clk 0:02:22.2]} 12. exf6 {[%clk
0:02:28.1]} 12... gxf6 {[%clk 0:01:49.9]} 13. Qxe6+ {[%clk 0:02:27.9]} 13...
dxe6 {[%clk 0:01:50.1]} 14. Bg2 {[%clk 0:02:25.3]} 14... Bb7 {[%clk 0:01:49.6]}
15. O-O {[%clk 0:02:10.5]} 15... Bxd2 {[%clk 0:01:18.4]} 16. Bxd2 {[%clk
0:02:11.4]} 16... Nxc4 {[%clk 0:01:18.7]} 17. Bc3 {[%clk 0:02:12]} 17... Kf7
{[%clk 0:01:14.9]} 18. Rac1 {[%clk 0:02:06.6]} 18... Nb6 {[%clk 0:01:11.2]} 19.
Rfe1 {[%clk 0:01:37]} 19... a5 {[%clk 0:00:38.1]} 20. Bd4 {[%clk 0:01:33.2]}
20... Nd5 {[%clk 0:00:36.4]} 21. Bc5 {[%clk 0:01:18.4]} 21... Rhg8 {[%clk
0:00:28.8]} 22. Kh2 {[%clk 0:01:16.8]} 22... a4 {[%clk 0:00:22.7]} 23. Bh3
{[%clk 0:01:10.5]} 23... Rge8 {[%clk 0:00:21.4]} 24. Rc4 {[%clk 0:01:06.3]}
24... h5 {[%clk 0:00:15.2]} 25. Rce4 {[%clk 0:01:02.9]} 25... f5 {[%clk
0:00:14.1]} 26. Rc4 {[%clk 0:00:54.7]} 26... Nf6 {[%clk 0:00:11.5]} 27. Rb4
{[%clk 0:00:47.7]} 27... Reb8 {[%clk 0:00:09.6]} 28. Bg2 {[%clk 0:00:45.7]}
28... Nd5 {[%clk 0:00:07.8]} 29. Rd4 {[%clk 0:00:32.9]} 29... Ra5 {[%clk
0:00:06]} 30. Ba3 {[%clk 0:00:27.8]} 30... Rh8 {[%clk 0:00:04]} 31. Rc4 {[%clk
0:00:22.2]} 31... Kf6 {[%clk 0:00:02.9]} 32. b4 {[%clk 0:00:16.3]} 32... axb3
{[%clk 0:00:03]} 33. Bb2+ {[%clk 0:00:16.5]} 33... Ke7 {[%clk 0:00:02.6]} 34.
Bxh8 {[%clk 0:00:15.5]} 34... bxa2 {[%clk 0:00:03.5]} 35. Bxd5 {[%clk 0:00:11]}
35... cxd5 {[%clk 0:00:01.8]} 36. Rxc7+ {[%clk 0:00:10.9]} 36... Kd6 {[%clk
0:00:02.3]} 1-0

[Event "*** SCC Grand Prix: Titled Tuesday Blitz"]
[Site "Chess.com"]
[Date "2020.07.07"]
[Round "1"]
[White "AttilaTurzo"]
[Black "Larina_Marija"]
[Result "1-0"]
[WhiteElo "2508"]
[BlackElo "2100"]
[TimeControl "180+1"]
[EndTime "10:07:24 PDT"]
[Termination "AttilaTurzo won by resignation"]

1. e4 {[%clk 0:02:08.8]} 1... d5 {[%clk 0:02:59.4]} 2. exd5 {[%clk 0:02:07.1]}
2... Qxd5 {[%clk 0:03:00.2]} 3. Nc3 {[%clk 0:02:06.8]} 3... Qa5 {[%clk
0:03:00.6]} 4. d4 {[%clk 0:02:06.9]} 4... Nf6 {[%clk 0:03:00.4]} 5. Bd2 {[%clk
0:02:06.7]} 5... Qb6 {[%clk 0:02:58.4]} 6. Nf3 {[%clk 0:01:59]} 6... Bg4 {[%clk
0:02:42.8]} 7. Bc4 {[%clk 0:01:50.4]} 7... e6 {[%clk 0:02:31.1]} 8. h3 {[%clk
0:01:32.5]} 8... Bh5 {[%clk 0:01:57]} 9. Bb3 {[%clk 0:01:15.4]} 9... Nc6 {[%clk
0:01:46.2]} 10. g4 {[%clk 0:00:53.8]} 10... Bg6 {[%clk 0:01:43.3]} 11. Be3
{[%clk 0:00:54]} 11... Qa5 {[%clk 0:01:04.3]} 12. Qe2 {[%clk 0:00:33.5]} 12...
O-O-O {[%clk 0:00:46.9]} 13. O-O-O {[%clk 0:00:30.1]} 13... Nb4 {[%clk
0:00:34.4]} 14. Ne5 {[%clk 0:00:23.7]} 14... c6 {[%clk 0:00:25.8]} 15. Nxg6
{[%clk 0:00:21.2]} 15... hxg6 {[%clk 0:00:26.1]} 16. Kb1 {[%clk 0:00:19.9]}
16... Nfd5 {[%clk 0:00:23.9]} 17. Bd2 {[%clk 0:00:19.8]} 17... Qb6 {[%clk
0:00:20.5]} 18. a3 {[%clk 0:00:19.3]} 18... Na6 {[%clk 0:00:19.2]} 19. Ne4
{[%clk 0:00:18.8]} 19... c5 {[%clk 0:00:15.1]} 20. dxc5 {[%clk 0:00:17.5]} 20...
Nxc5 {[%clk 0:00:15.6]} 21. Nxc5 {[%clk 0:00:17.9]} 21... Qxc5 {[%clk
0:00:16.5]} 22. f4 {[%clk 0:00:17.7]} 22... Bd6 {[%clk 0:00:11.4]} 23. f5 {[%clk
0:00:16.6]} 23... gxf5 {[%clk 0:00:11]} 24. gxf5 {[%clk 0:00:17.5]} 24... Rhe8
{[%clk 0:00:09.8]} 25. fxe6 {[%clk 0:00:16.5]} 25... Rxe6 {[%clk 0:00:09.8]} 26.
Qf3 {[%clk 0:00:16.5]} 26... Nf6 {[%clk 0:00:08.7]} 27. Bxe6+ {[%clk 0:00:16]}
27... fxe6 {[%clk 0:00:08.1]} 28. Qc3 {[%clk 0:00:16.1]} 28... Ne4 {[%clk
0:00:06.4]} 29. Qxc5+ {[%clk 0:00:16.1]} 29... Bxc5 {[%clk 0:00:04]} 30. Bf4
{[%clk 0:00:14.2]} 30... e5 {[%clk 0:00:03.6]} 31. Rxd8+ {[%clk 0:00:13.8]}
31... Kxd8 {[%clk 0:00:04.5]} 32. Bxe5 {[%clk 0:00:14.6]} 32... Nd2+ {[%clk
0:00:04.3]} 33. Kc1 {[%clk 0:00:14.6]} 33... Nc4 {[%clk 0:00:04.8]} 34. Bxg7
{[%clk 0:00:14.6]} 34... Be3+ {[%clk 0:00:05.3]} 35. Kb1 {[%clk 0:00:14.4]}
35... Nd2+ {[%clk 0:00:05.7]} 36. Ka2 {[%clk 0:00:14.9]} 36... Ke7 {[%clk
0:00:04.8]} 37. Re1 {[%clk 0:00:14.7]} 37... Nc4 {[%clk 0:00:03.9]} 38. Bd4
{[%clk 0:00:14.8]} 1-0

[Event "*** SCC Grand Prix: Titled Tuesday Blitz"]
[Site "Chess.com"]
[Date "2020.07.07"]
[Round "1"]
[White "Angel_Hranitel_37"]
[Black "Semen_Khanin"]
[Result "0-1"]
[WhiteElo "2385"]
[BlackElo "2714"]
[TimeControl "180+1"]
[EndTime "10:07:25 PDT"]
[Termination "Semen_Khanin won by checkmate"]

1. d4 {[%clk 0:03:00]} 1... Nf6 {[%clk 0:02:59.6]} 2. Nf3 {[%clk 0:03:00.2]}
2... e6 {[%clk 0:02:58.5]} 3. c4 {[%clk 0:02:59.7]} 3... d5 {[%clk 0:02:57.4]}
4. g3 {[%clk 0:02:59.6]} 4... Bb4+ {[%clk 0:02:50]} 5. Bd2 {[%clk 0:02:59.4]}
5... Be7 {[%clk 0:02:49.9]} 6. Qc2 {[%clk 0:02:57.3]} 6... c6 {[%clk 0:02:47.7]}
7. Bg2 {[%clk 0:02:57.4]} 7... Nbd7 {[%clk 0:02:48.3]} 8. O-O {[%clk 0:02:57.4]}
8... O-O {[%clk 0:02:48]} 9. b3 {[%clk 0:02:55.6]} 9... Ne4 {[%clk 0:02:45.6]}
10. Rd1 {[%clk 0:02:50.2]} 10... f5 {[%clk 0:02:43.6]} 11. Nc3 {[%clk
0:02:39.1]} 11... Ndf6 {[%clk 0:02:42.7]} 12. Ne5 {[%clk 0:02:26.8]} 12... Bd7
{[%clk 0:02:36.8]} 13. f3 {[%clk 0:02:18.6]} 13... Nxd2 {[%clk 0:02:30.5]} 14.
Qxd2 {[%clk 0:02:16.6]} 14... Be8 {[%clk 0:02:28.9]} 15. f4 {[%clk 0:02:10.7]}
15... c5 {[%clk 0:02:05.3]} 16. cxd5 {[%clk 0:01:47.9]} 16... exd5 {[%clk
0:02:05.1]} 17. Rac1 {[%clk 0:01:39]} 17... Rc8 {[%clk 0:02:03.2]} 18. e3 {[%clk
0:01:23.7]} 18... Bh5 {[%clk 0:01:53.8]} 19. Re1 {[%clk 0:01:17]} 19... Ne4
{[%clk 0:01:45.7]} 20. Nxe4 {[%clk 0:00:37.9]} 20... dxe4 {[%clk 0:01:45.6]} 21.
d5 {[%clk 0:00:28.5]} 21... b5 {[%clk 0:01:37.5]} 22. Bf1 {[%clk 0:00:28.6]}
22... a6 {[%clk 0:01:36.4]} 23. Be2 {[%clk 0:00:28.3]} 23... Be8 {[%clk
0:01:33.9]} 24. Red1 {[%clk 0:00:18.9]} 24... Bd6 {[%clk 0:01:34.1]} 25. Qb2
{[%clk 0:00:12]} 25... Qe7 {[%clk 0:01:33.8]} 26. Nc6 {[%clk 0:00:09.5]} 26...
Bxc6 {[%clk 0:01:31.8]} 27. dxc6 {[%clk 0:00:10.4]} 27... Rxc6 {[%clk
0:01:32.3]} 28. Rd5 {[%clk 0:00:11.3]} 28... Qe6 {[%clk 0:01:27.3]} 29. Rcd1
{[%clk 0:00:11.7]} 29... Be7 {[%clk 0:01:27.6]} 30. Rd7 {[%clk 0:00:11.1]} 30...
Rcc8 {[%clk 0:01:19.6]} 31. a4 {[%clk 0:00:11.2]} 31... Bf6 {[%clk 0:00:54.6]}
32. Qc2 {[%clk 0:00:08.8]} 32... Qb6 {[%clk 0:00:34.6]} 33. axb5 {[%clk
0:00:07.5]} 33... axb5 {[%clk 0:00:34.4]} 34. h3 {[%clk 0:00:04.5]} 34... Rfd8
{[%clk 0:00:29.8]} 35. g4 {[%clk 0:00:04.8]} 35... Rxd7 {[%clk 0:00:26.9]} 36.
Rxd7 {[%clk 0:00:05.7]} 36... c4 {[%clk 0:00:25]} 37. bxc4 {[%clk 0:00:05.5]}
37... Qxe3+ {[%clk 0:00:25.2]} 38. Kg2 {[%clk 0:00:04.8]} 38... Bd4 {[%clk
0:00:23.2]} 39. c5 {[%clk 0:00:03.1]} 39... Qg1# {[%clk 0:00:22.9]} 0-1

[Event "*** SCC Grand Prix: Titled Tuesday Blitz"]
[Site "Chess.com"]
[Date "2020.07.07"]
[Round "1"]
[White "Harsha_Bharathakoti"]
[Black "rynos0411"]
[Result "1-0"]
[WhiteElo "2803"]
[BlackElo "2418"]
[TimeControl "180+1"]
[EndTime "10:07:26 PDT"]
[Termination "Harsha_Bharathakoti won by resignation"]

1. d4 {[%clk 0:02:58.3]} 1... d5 {[%clk 0:02:58]} 2. c4 {[%clk 0:02:56.2]} 2...
c6 {[%clk 0:02:57.6]} 3. Nf3 {[%clk 0:02:56.2]} 3... Nf6 {[%clk 0:02:58]} 4. Nc3
{[%clk 0:02:56.2]} 4... e6 {[%clk 0:02:58.1]} 5. e3 {[%clk 0:02:56.2]} 5... Nbd7
{[%clk 0:02:57.8]} 6. Qc2 {[%clk 0:02:56.2]} 6... Bd6 {[%clk 0:02:57.5]} 7. Bd3
{[%clk 0:02:56.3]} 7... O-O {[%clk 0:02:56.9]} 8. O-O {[%clk 0:02:56.4]} 8...
dxc4 {[%clk 0:02:57]} 9. Bxc4 {[%clk 0:02:57.3]} 9... b5 {[%clk 0:02:57.3]} 10.
Be2 {[%clk 0:02:57.5]} 10... Bb7 {[%clk 0:02:57.8]} 11. Rd1 {[%clk 0:02:57.8]}
11... Qc7 {[%clk 0:02:57.8]} 12. Bd2 {[%clk 0:02:58.2]} 12... a6 {[%clk
0:02:56]} 13. b4 {[%clk 0:02:58.5]} 13... Rac8 {[%clk 0:02:52]} 14. Rab1 {[%clk
0:02:50]} 14... Rfe8 {[%clk 0:02:51.6]} 15. h3 {[%clk 0:02:49.5]} 15... e5
{[%clk 0:02:51.6]} 16. Bd3 {[%clk 0:02:50]} 16... exd4 {[%clk 0:02:43.9]} 17.
exd4 {[%clk 0:02:50.9]} 17... h6 {[%clk 0:02:44]} 18. a3 {[%clk 0:02:34.3]}
18... Nb6 {[%clk 0:02:41.6]} 19. Re1 {[%clk 0:02:34.1]} 19... Bf4 {[%clk
0:02:34.1]} 20. Ne4 {[%clk 0:01:44.6]} 20... Nxe4 {[%clk 0:02:25.9]} 21. Bxe4
{[%clk 0:01:44.4]} 21... Nd5 {[%clk 0:02:22.7]} 22. Bxf4 {[%clk 0:01:22]} 22...
Qxf4 {[%clk 0:02:22.2]} 23. Bxd5 {[%clk 0:01:11.4]} 23... cxd5 {[%clk 0:02:20]}
24. Rxe8+ {[%clk 0:01:08.7]} 24... Rxe8 {[%clk 0:02:20.9]} 25. Qd2 {[%clk
0:00:46]} 25... Qxd2 {[%clk 0:02:08.5]} 26. Nxd2 {[%clk 0:00:46.9]} 26... Rc8
{[%clk 0:02:08.8]} 27. Nb3 {[%clk 0:00:46.7]} 27... Rc3 {[%clk 0:02:06.6]} 28.
Nc5 {[%clk 0:00:46.8]} 28... Bc8 {[%clk 0:02:05.7]} 29. Ra1 {[%clk 0:00:46.7]}
29... Rc4 {[%clk 0:02:02.5]} 30. Rd1 {[%clk 0:00:45.3]} 30... Rc3 {[%clk
0:01:58.8]} 31. Rd3 {[%clk 0:00:45.4]} 31... Rc1+ {[%clk 0:01:56.8]} 32. Kh2
{[%clk 0:00:45.5]} 32... Bf5 {[%clk 0:01:57.2]} 33. Rf3 {[%clk 0:00:45.2]} 33...
Bg6 {[%clk 0:01:54.3]} 34. Nxa6 {[%clk 0:00:43.1]} 34... Rd1 {[%clk 0:01:52.6]}
35. Nc7 {[%clk 0:00:39.9]} 35... Rxd4 {[%clk 0:01:51.6]} 36. Nxb5 {[%clk
0:00:40.2]} 36... Rd2 {[%clk 0:01:46.1]} 37. a4 {[%clk 0:00:34.3]} 37... Rb2
{[%clk 0:01:45.8]} 38. Rf4 {[%clk 0:00:14.1]} 38... Bd3 {[%clk 0:01:38.2]} 39.
Rd4 {[%clk 0:00:13.1]} 39... Bc4 {[%clk 0:01:33.2]} 40. Nc3 {[%clk 0:00:12.2]}
40... Rxf2 {[%clk 0:01:23.7]} 41. Nxd5 {[%clk 0:00:11.1]} 41... Bb3 {[%clk
0:01:14.2]} 42. a5 {[%clk 0:00:10.9]} 42... Ra2 {[%clk 0:01:09.9]} 43. Nc7
{[%clk 0:00:11.4]} 43... Ba4 {[%clk 0:01:07.8]} 44. a6 {[%clk 0:00:10.9]} 44...
Bc6 {[%clk 0:01:03.3]} 45. Kg3 {[%clk 0:00:07]} 45... Rxg2+ {[%clk 0:01:02]} 46.
Kf4 {[%clk 0:00:07.2]} 46... Kf8 {[%clk 0:00:58]} 47. b5 {[%clk 0:00:05.4]}
47... Rf2+ {[%clk 0:00:49.9]} 48. Ke3 {[%clk 0:00:04.8]} 48... Rf3+ {[%clk
0:00:47.7]} 49. Ke2 {[%clk 0:00:05.4]} 1-0

[Event "*** SCC Grand Prix: Titled Tuesday Blitz"]
[Site "Chess.com"]
[Date "2020.07.07"]
[Round "1"]
[White "m-garcett"]
[Black "BigAl"]
[Result "0-1"]
[WhiteElo "2062"]
[BlackElo "2497"]
[TimeControl "180+1"]
[EndTime "10:07:26 PDT"]
[Termination "BigAl won on time"]

1. e4 {[%clk 0:02:56.2]} 1... c6 {[%clk 0:02:59.6]} 2. d4 {[%clk 0:02:55.6]}
2... d5 {[%clk 0:02:59.4]} 3. exd5 {[%clk 0:02:55.7]} 3... cxd5 {[%clk 0:02:59]}
4. c4 {[%clk 0:02:56.1]} 4... Nf6 {[%clk 0:02:58.7]} 5. Nc3 {[%clk 0:02:56.1]}
5... g6 {[%clk 0:02:59]} 6. Nf3 {[%clk 0:02:51.8]} 6... Bg7 {[%clk 0:02:58.7]}
7. Bd3 {[%clk 0:02:45.3]} 7... O-O {[%clk 0:02:56.9]} 8. O-O {[%clk 0:02:44]}
8... Nc6 {[%clk 0:02:57.5]} 9. h3 {[%clk 0:02:37]} 9... Nb4 {[%clk 0:02:51.8]}
10. Be2 {[%clk 0:02:29.6]} 10... Bf5 {[%clk 0:02:50.9]} 11. a3 {[%clk
0:02:27.8]} 11... Nc6 {[%clk 0:02:35.9]} 12. Be3 {[%clk 0:01:42.7]} 12... Rc8
{[%clk 0:02:26.2]} 13. cxd5 {[%clk 0:01:13.7]} 13... Nxd5 {[%clk 0:02:24.8]} 14.
Bc4 {[%clk 0:01:11.4]} 14... Nxc3 {[%clk 0:02:13.3]} 15. bxc3 {[%clk 0:01:12.3]}
15... Na5 {[%clk 0:02:13.6]} 16. Ba2 {[%clk 0:01:04.2]} 16... Rxc3 {[%clk
0:02:09.5]} 17. Ne5 {[%clk 0:00:52.9]} 17... Be4 {[%clk 0:01:51]} 18. Bd2 {[%clk
0:00:37]} 18... Qxd4 {[%clk 0:01:27.1]} 19. Bxc3 {[%clk 0:00:26.3]} 19... Qxc3
{[%clk 0:01:27.2]} 20. Nxf7 {[%clk 0:00:20.5]} 20... Rxf7 {[%clk 0:01:17.6]} 21.
Qd8+ {[%clk 0:00:19.4]} 21... Bf8 {[%clk 0:01:18.2]} 22. Rac1 {[%clk 0:00:10.2]}
22... Qf6 {[%clk 0:01:12.3]} 23. Qxa5 {[%clk 0:00:07.8]} 23... Bc6 {[%clk
0:00:52.4]} 24. Bxf7+ {[%clk 0:00:07.1]} 24... Qxf7 {[%clk 0:00:52]} 25. Qc3
{[%clk 0:00:06.1]} 25... Bg7 {[%clk 0:00:46.9]} 26. Qc4 {[%clk 0:00:06.2]} 26...
Qxc4 {[%clk 0:00:38.9]} 27. Rxc4 {[%clk 0:00:05.3]} 27... Bf6 {[%clk 0:00:38.9]}
28. Rd1 {[%clk 0:00:03.7]} 28... Kf7 {[%clk 0:00:33.9]} 29. g4 {[%clk
0:00:03.2]} 29... g5 {[%clk 0:00:27.4]} 30. a4 {[%clk 0:00:03.5]} 30... Be8
{[%clk 0:00:20.1]} 31. a5 {[%clk 0:00:03.6]} 31... a6 {[%clk 0:00:16.8]} 32. Rc7
{[%clk 0:00:03.5]} 32... Bc6 {[%clk 0:00:15.5]} 33. Rc1 {[%clk 0:00:03.4]} 33...
Be4 {[%clk 0:00:14]} 34. R1c4 {[%clk 0:00:02.1]} 34... Bd5 {[%clk 0:00:13.4]}
35. Rb4 {[%clk 0:00:01.8]} 35... Be5 {[%clk 0:00:09.7]} 36. Rbxb7 {[%clk
0:00:01.7]} 36... Bxb7 {[%clk 0:00:07.2]} 0-1

[Event "*** SCC Grand Prix: Titled Tuesday Blitz"]
[Site "Chess.com"]
[Date "2020.07.07"]
[Round "1"]
[White "IMRosen"]
[Black "Quiet_Desperation"]
[Result "1-0"]
[WhiteElo "2565"]
[BlackElo "2212"]
[TimeControl "180+1"]
[EndTime "10:07:29 PDT"]
[Termination "IMRosen won on time"]

1. d4 {[%clk 0:03:00.8]} 1... d5 {[%clk 0:02:58.4]} 2. Bf4 {[%clk 0:03:00.6]}
2... Nf6 {[%clk 0:02:55.3]} 3. e3 {[%clk 0:03:01]} 3... Bf5 {[%clk 0:02:49.5]}
4. Nf3 {[%clk 0:03:00.6]} 4... e6 {[%clk 0:02:49]} 5. Ne5 {[%clk 0:03:01]} 5...
Bd6 {[%clk 0:02:48]} 6. g4 {[%clk 0:03:00.9]} 6... Be4 {[%clk 0:02:46]} 7. f3
{[%clk 0:02:59.4]} 7... Bg6 {[%clk 0:02:46.1]} 8. h4 {[%clk 0:02:59.1]} 8... h5
{[%clk 0:02:34.1]} 9. g5 {[%clk 0:02:48.1]} 9... Bxe5 {[%clk 0:02:22.9]} 10.
Bxe5 {[%clk 0:02:42.7]} 10... Nfd7 {[%clk 0:02:22.9]} 11. Bg3 {[%clk 0:02:42.6]}
11... Nc6 {[%clk 0:02:11.1]} 12. Nc3 {[%clk 0:02:25.2]} 12... O-O {[%clk
0:01:57.4]} 13. Bd3 {[%clk 0:02:08.2]} 13... Bxd3 {[%clk 0:01:54.3]} 14. Qxd3
{[%clk 0:02:04.5]} 14... g6 {[%clk 0:01:54.6]} 15. O-O-O {[%clk 0:02:00.5]}
15... Nb6 {[%clk 0:01:48.2]} 16. e4 {[%clk 0:01:57.3]} 16... Qe7 {[%clk
0:01:42.8]} 17. exd5 {[%clk 0:01:30.9]} 17... exd5 {[%clk 0:01:39.8]} 18. a3
{[%clk 0:01:26.3]} 18... Rfe8 {[%clk 0:01:32.3]} 19. Rhe1 {[%clk 0:01:21.8]}
19... Qd7 {[%clk 0:01:31.9]} 20. Nb5 {[%clk 0:00:55.2]} 20... Rxe1 {[%clk
0:01:12.6]} 21. Rxe1 {[%clk 0:00:53.9]} 21... Rc8 {[%clk 0:01:12]} 22. b3 {[%clk
0:00:33.9]} 22... a6 {[%clk 0:01:06.4]} 23. Nc3 {[%clk 0:00:34]} 23... Re8
{[%clk 0:01:01.3]} 24. Re3 {[%clk 0:00:32.1]} 24... Re7 {[%clk 0:00:46]} 25. Kb2
{[%clk 0:00:16.1]} 25... Na5 {[%clk 0:00:40.4]} 26. Be5 {[%clk 0:00:11.4]} 26...
Nac4+ {[%clk 0:00:31.7]} 27. bxc4 {[%clk 0:00:11.5]} 27... Nxc4+ {[%clk
0:00:32.6]} 28. Kc1 {[%clk 0:00:11.8]} 28... Qc6 {[%clk 0:00:20.1]} 29. f4
{[%clk 0:00:09.4]} 29... Qb6 {[%clk 0:00:17.8]} 30. Nd1 {[%clk 0:00:08.8]} 30...
Nxe3 {[%clk 0:00:12.7]} 31. Qxe3 {[%clk 0:00:09.7]} 31... Qe6 {[%clk 0:00:09.8]}
32. Nf2 {[%clk 0:00:09]} 32... b6 {[%clk 0:00:09.8]} 33. Nd3 {[%clk 0:00:05.7]}
33... Qg4 {[%clk 0:00:07.9]} 34. Kb2 {[%clk 0:00:06.1]} 34... Qxh4 {[%clk
0:00:07.9]} 35. f5 {[%clk 0:00:04.5]} 35... Qg4 {[%clk 0:00:05.6]} 36. Nf4
{[%clk 0:00:03.6]} 36... Qxf5 {[%clk 0:00:03.9]} 37. Nxd5 {[%clk 0:00:03]} 37...
Re6 {[%clk 0:00:03.9]} 38. Nf6+ {[%clk 0:00:03.4]} 38... Kf8 {[%clk 0:00:02.3]}
39. Qc3 {[%clk 0:00:04.1]} 1-0

[Event "*** SCC Grand Prix: Titled Tuesday Blitz"]
[Site "Chess.com"]
[Date "2020.07.07"]
[Round "1"]
[White "bmt011"]
[Black "OhanyanEminChess"]
[Result "0-1"]
[WhiteElo "2123"]
[BlackElo "2516"]
[TimeControl "180+1"]
[EndTime "10:07:29 PDT"]
[Termination "OhanyanEminChess won on time"]

1. d4 {[%clk 0:03:00.9]} 1... Nf6 {[%clk 0:02:58.5]} 2. Bf4 {[%clk 0:02:59.8]}
2... c5 {[%clk 0:02:58.4]} 3. c3 {[%clk 0:02:55.9]} 3... d5 {[%clk 0:02:57.9]}
4. e3 {[%clk 0:02:55.7]} 4... Nc6 {[%clk 0:02:58]} 5. Nd2 {[%clk 0:02:55.4]}
5... Bf5 {[%clk 0:02:55.5]} 6. Qb3 {[%clk 0:02:33.7]} 6... Qb6 {[%clk
0:02:53.5]} 7. h3 {[%clk 0:02:27.5]} 7... e6 {[%clk 0:02:49.8]} 8. g4 {[%clk
0:02:22.3]} 8... Bg6 {[%clk 0:02:46.5]} 9. Bg2 {[%clk 0:02:22.3]} 9... c4 {[%clk
0:02:45.4]} 10. Qxb6 {[%clk 0:02:21.6]} 10... axb6 {[%clk 0:02:46.3]} 11. a3
{[%clk 0:02:21.8]} 11... b5 {[%clk 0:02:45.9]} 12. Rc1 {[%clk 0:02:21.1]} 12...
Kd7 {[%clk 0:02:34.4]} 13. Ne2 {[%clk 0:02:10.7]} 13... Bd6 {[%clk 0:02:33]} 14.
Bxd6 {[%clk 0:02:03.3]} 14... Kxd6 {[%clk 0:02:33.9]} 15. Nf4 {[%clk 0:02:03.5]}
15... Nd7 {[%clk 0:02:28.2]} 16. Nxg6 {[%clk 0:01:32.7]} 16... hxg6 {[%clk
0:02:29.1]} 17. e4 {[%clk 0:01:33.2]} 17... g5 {[%clk 0:02:22.2]} 18. O-O {[%clk
0:01:29.6]} 18... f6 {[%clk 0:02:18.3]} 19. Rcd1 {[%clk 0:01:22.3]} 19... Nb6
{[%clk 0:02:15]} 20. Rfe1 {[%clk 0:01:18]} 20... Na4 {[%clk 0:02:13.1]} 21. Rb1
{[%clk 0:01:09]} 21... Rhe8 {[%clk 0:02:10.8]} 22. Nf1 {[%clk 0:00:38.9]} 22...
Ne7 {[%clk 0:01:58.1]} 23. Ne3 {[%clk 0:00:34.4]} 23... Ng6 {[%clk 0:01:44.3]}
24. exd5 {[%clk 0:00:28.5]} 24... exd5 {[%clk 0:01:44.6]} 25. Nf5+ {[%clk
0:00:26]} 25... Kc6 {[%clk 0:01:44.3]} 26. Nxg7 {[%clk 0:00:20.4]} 26... Rxe1+
{[%clk 0:01:33.9]} 27. Rxe1 {[%clk 0:00:19.6]} 27... Nxb2 {[%clk 0:01:34.8]} 28.
Re6+ {[%clk 0:00:19.8]} 28... Kc7 {[%clk 0:01:35.3]} 29. Rxf6 {[%clk 0:00:19.7]}
29... Nf4 {[%clk 0:01:35.7]} 30. Ne6+ {[%clk 0:00:18.7]} 30... Nxe6 {[%clk
0:01:35.1]} 31. Rxe6 {[%clk 0:00:19]} 31... Rxa3 {[%clk 0:01:35.7]} 32. Bxd5
{[%clk 0:00:19.3]} 32... Rxc3 {[%clk 0:01:35.8]} 33. Rh6 {[%clk 0:00:15.9]}
33... Rc1+ {[%clk 0:01:35.5]} 34. Kg2 {[%clk 0:00:15.8]} 34... c3 {[%clk
0:01:36.4]} 35. Rh7+ {[%clk 0:00:15.8]} 35... Kd6 {[%clk 0:01:36.3]} 36. Bxb7
{[%clk 0:00:16]} 36... c2 {[%clk 0:01:35.1]} 37. Be4 {[%clk 0:00:16.5]} 37...
Rg1+ {[%clk 0:01:33.1]} 38. Kxg1 {[%clk 0:00:14.8]} 38... c1=Q+ {[%clk 0:01:34]}
39. Kg2 {[%clk 0:00:15.4]} 39... Qf4 {[%clk 0:01:32.7]} 40. Rh6+ {[%clk
0:00:11.9]} 40... Ke7 {[%clk 0:01:32.2]} 41. f3 {[%clk 0:00:11.8]} 41... Nd1
{[%clk 0:01:31.2]} 42. Rh7+ {[%clk 0:00:12.2]} 42... Kf6 {[%clk 0:01:27.7]} 43.
Rh6+ {[%clk 0:00:12.5]} 43... Kg7 {[%clk 0:01:28.2]} 44. Rg6+ {[%clk 0:00:11.9]}
44... Kf7 {[%clk 0:01:28.3]} 45. Rb6 {[%clk 0:00:08.9]} 45... Ne3+ {[%clk
0:01:26.6]} 46. Kf2 {[%clk 0:00:09.4]} 46... Nc4 {[%clk 0:01:27.1]} 47. Rxb5
{[%clk 0:00:09]} 47... Qh2+ {[%clk 0:01:27.5]} 48. Kf1 {[%clk 0:00:07.3]} 48...
Ne3+ {[%clk 0:01:14.6]} 49. Ke1 {[%clk 0:00:06.1]} 49... Kf6 {[%clk 0:00:47.1]}
50. Rb6+ {[%clk 0:00:03]} 50... Ke7 {[%clk 0:00:47.5]} 51. Rb7+ {[%clk
0:00:02.3]} 51... Kd6 {[%clk 0:00:46.6]} 52. Rb6+ {[%clk 0:00:02.2]} 52... Kc7
{[%clk 0:00:47.2]} 53. Rb7+ {[%clk 0:00:02.5]} 53... Kc8 {[%clk 0:00:46.8]} 0-1